[Event "*** Titled Tuesday Blitz"]
[Site "Chess.com"]
[Date "2021.02.09"]
[Round "5"]
[White "HanSchut"]
[Black "Dahamdi_Sanudula"]
[Result "1-0"]
[WhiteElo "2286"]
[BlackElo "1709"]
[TimeControl "180+1"]
[EndTime "10:53:02 PST"]
[Termination "HanSchut won by resignation"]

1. e4 {[%clk 0:03:00.9]} 1... d5 {[%clk 0:02:57.8]} 2. exd5 {[%clk 0:03:00.3]}
2... Qxd5 {[%clk 0:02:58.7]} 3. Nc3 {[%clk 0:03:00.8]} 3... Qa5 {[%clk
0:02:58.8]} 4. d4 {[%clk 0:03:01.3]} 4... c6 {[%clk 0:02:59.4]} 5. Bd2 {[%clk
0:02:59]} 5... Nf6 {[%clk 0:02:59.4]} 6. Bc4 {[%clk 0:02:58.1]} 6... Bg4 {[%clk
0:02:59]} 7. f3 {[%clk 0:02:58.4]} 7... Bh5 {[%clk 0:02:58.5]} 8. Qe2 {[%clk
0:02:58.9]} 8... e6 {[%clk 0:02:55.2]} 9. d5 {[%clk 0:02:57.9]} 9... cxd5 {[%clk
0:02:50.9]} 10. Nxd5 {[%clk 0:02:58.8]} 10... Qd8 {[%clk 0:02:46.5]} 11. Nxf6+
{[%clk 0:02:58.6]} 11... gxf6 {[%clk 0:02:44.8]} 12. O-O-O {[%clk 0:02:57.5]}
12... Qc7 {[%clk 0:02:37.9]} 13. Bc3 {[%clk 0:02:39.8]} 13... Nd7 {[%clk
0:02:17]} 14. g4 {[%clk 0:02:13.6]} 14... Bg6 {[%clk 0:02:13.9]} 15. h4 {[%clk
0:02:14.1]} 15... h6 {[%clk 0:02:13.5]} 16. Nh3 {[%clk 0:01:55.1]} 16... O-O-O
{[%clk 0:02:07]} 17. g5 {[%clk 0:01:55.3]} 17... hxg5 {[%clk 0:02:06.4]} 18.
hxg5 {[%clk 0:01:55.7]} 18... fxg5 {[%clk 0:02:05.2]} 19. Bxh8 {[%clk 0:01:55]}
1-0

[Event "*** Titled Tuesday Blitz"]
[Site "Chess.com"]
[Date "2021.02.09"]
[Round "5"]
[White "Anton_Demchenko"]
[Black "tomsishere"]
[Result "1-0"]
[WhiteElo "2846"]
[BlackElo "2447"]
[TimeControl "180+1"]
[EndTime "10:53:04 PST"]
[Termination "Anton_Demchenko won by resignation"]

1. e4 {[%clk 0:03:00.4]} 1... b6 {[%clk 0:03:00.9]} 2. d4 {[%clk 0:02:58.5]}
2... Bb7 {[%clk 0:03:01.1]} 3. Bd3 {[%clk 0:02:55.5]} 3... e6 {[%clk 0:03:01.6]}
4. Nf3 {[%clk 0:02:52]} 4... c5 {[%clk 0:03:01.8]} 5. c3 {[%clk 0:02:42.3]} 5...
cxd4 {[%clk 0:03:01.5]} 6. cxd4 {[%clk 0:02:41]} 6... Nf6 {[%clk 0:03:02.2]} 7.
Qe2 {[%clk 0:02:37.1]} 7... d5 {[%clk 0:02:58.6]} 8. e5 {[%clk 0:02:37.1]} 8...
Ne4 {[%clk 0:02:57.4]} 9. O-O {[%clk 0:02:37.2]} 9... Nd7 {[%clk 0:02:53.4]} 10.
Nbd2 {[%clk 0:02:35.9]} 10... Nxd2 {[%clk 0:02:51.9]} 11. Qxd2 {[%clk
0:02:31.6]} 11... Be7 {[%clk 0:02:50.1]} 12. Qf4 {[%clk 0:02:30.7]} 12... O-O
{[%clk 0:02:30.8]} 13. Qg4 {[%clk 0:02:29.4]} 13... g6 {[%clk 0:02:03.1]} 14.
Bh6 {[%clk 0:02:27.1]} 14... Re8 {[%clk 0:02:02.8]} 15. h4 {[%clk 0:02:27.1]}
15... Bf8 {[%clk 0:02:02]} 16. Bg5 {[%clk 0:02:26.8]} 16... h5 {[%clk
0:01:56.8]} 17. Qf4 {[%clk 0:02:26.1]} 17... Bg7 {[%clk 0:01:54.4]} 18. g4
{[%clk 0:02:26.1]} 18... f6 {[%clk 0:01:41.5]} 19. exf6 {[%clk 0:02:19.1]} 19...
Bxf6 {[%clk 0:01:41.2]} 20. Bxg6 {[%clk 0:02:18.3]} 20... Bxg5 {[%clk
0:01:41.2]} 21. Qf7+ {[%clk 0:02:17.9]} 1-0

[Event "*** Titled Tuesday Blitz"]
[Site "Chess.com"]
[Date "2021.02.09"]
[Round "5"]
[White "verdest"]
[Black "GregShahade"]
[Result "1-0"]
[WhiteElo "2496"]
[BlackElo "2680"]
[TimeControl "180+1"]
[EndTime "10:53:24 PST"]
[Termination "verdest won by resignation"]

1. d4 {[%clk 0:03:00.9]} 1... Nf6 {[%clk 0:02:59.6]} 2. c4 {[%clk 0:02:58.4]}
2... g6 {[%clk 0:02:59.5]} 3. g3 {[%clk 0:02:57.6]} 3... Bg7 {[%clk 0:02:55.4]}
4. Bg2 {[%clk 0:02:57.5]} 4... d5 {[%clk 0:02:56.1]} 5. cxd5 {[%clk 0:02:58.1]}
5... Nxd5 {[%clk 0:02:56.6]} 6. Nc3 {[%clk 0:02:58.4]} 6... Nb6 {[%clk
0:02:56.4]} 7. Nf3 {[%clk 0:02:55.9]} 7... Nc6 {[%clk 0:02:56.5]} 8. O-O {[%clk
0:02:53]} 8... Nxd4 {[%clk 0:02:55.4]} 9. Nxd4 {[%clk 0:02:52.7]} 9... Qxd4
{[%clk 0:02:53.2]} 10. a4 {[%clk 0:02:50.9]} 10... Qxd1 {[%clk 0:02:23.1]} 11.
Rxd1 {[%clk 0:02:51.8]} 11... a6 {[%clk 0:02:23]} 12. a5 {[%clk 0:02:50.3]}
12... Nc4 {[%clk 0:02:14.3]} 13. Nd5 {[%clk 0:02:47.8]} 13... O-O {[%clk
0:02:10.2]} 14. Nxe7+ {[%clk 0:02:41.8]} 14... Kh8 {[%clk 0:02:09.6]} 15. Nxc8
{[%clk 0:02:41.2]} 15... Raxc8 {[%clk 0:02:06.5]} 16. Bxb7 {[%clk 0:02:41.6]}
16... Rcd8 {[%clk 0:01:58.4]} 17. Rxd8 {[%clk 0:02:27.8]} 17... Rxd8 {[%clk
0:01:59.3]} 18. Bxa6 {[%clk 0:02:27.9]} 18... Rd1+ {[%clk 0:01:41.9]} 19. Kg2
{[%clk 0:02:27.8]} 19... Nxa5 {[%clk 0:01:42]} 20. Rxa5 {[%clk 0:02:27]} 20...
Rxc1 {[%clk 0:01:41.3]} 21. b3 {[%clk 0:02:22]} 21... Be5 {[%clk 0:01:28.7]} 22.
Rxe5 {[%clk 0:02:20.9]} 1-0

[Event "*** Titled Tuesday Blitz"]
[Site "Chess.com"]
[Date "2021.02.09"]
[Round "5"]
[White "SirStrateg"]
[Black "MrTattaglia"]
[Result "0-1"]
[WhiteElo "2578"]
[BlackElo "2794"]
[TimeControl "180+1"]
[EndTime "10:53:38 PST"]
[Termination "MrTattaglia won by resignation"]

1. d4 {[%clk 0:03:00.9]} 1... e6 {[%clk 0:02:59.5]} 2. Bf4 {[%clk 0:02:58.2]}
2... c5 {[%clk 0:02:58.8]} 3. e3 {[%clk 0:02:56.2]} 3... Nc6 {[%clk 0:02:58.6]}
4. c3 {[%clk 0:02:56.4]} 4... Nf6 {[%clk 0:02:59]} 5. Nf3 {[%clk 0:02:54.9]}
5... b6 {[%clk 0:02:59.1]} 6. Nbd2 {[%clk 0:02:55]} 6... Bb7 {[%clk 0:02:59.6]}
7. Bd3 {[%clk 0:02:49.1]} 7... Be7 {[%clk 0:02:59.9]} 8. h3 {[%clk 0:02:49.2]}
8... O-O {[%clk 0:02:59.3]} 9. Qe2 {[%clk 0:02:49.8]} 9... Rc8 {[%clk
0:02:59.3]} 10. Ba6 {[%clk 0:02:48.7]} 10... Bxa6 {[%clk 0:02:58.8]} 11. Qxa6
{[%clk 0:02:48.3]} 11... d6 {[%clk 0:02:59.7]} 12. a4 {[%clk 0:02:46.8]} 12...
Qd7 {[%clk 0:02:59.5]} 13. O-O {[%clk 0:02:45.7]} 13... Rfd8 {[%clk 0:02:58.2]}
14. Nb3 {[%clk 0:02:31]} 14... Ne4 {[%clk 0:02:42.8]} 15. Rfd1 {[%clk
0:02:29.5]} 15... d5 {[%clk 0:02:41.6]} 16. a5 {[%clk 0:02:19.4]} 16... c4
{[%clk 0:02:40.8]} 17. Nbd2 {[%clk 0:02:11.7]} 17... Nxd2 {[%clk 0:02:38.9]} 18.
Nxd2 {[%clk 0:01:50.5]} 18... Nxa5 {[%clk 0:02:37.9]} 19. e4 {[%clk 0:01:51]}
19... Bf8 {[%clk 0:02:29.2]} 20. Re1 {[%clk 0:01:50.9]} 20... Qc6 {[%clk
0:02:27.7]} 21. exd5 {[%clk 0:01:42.3]} 21... exd5 {[%clk 0:02:28.6]} 22. Qxa7
{[%clk 0:01:41]} 22... Rd7 {[%clk 0:02:26.3]} 23. Rxa5 {[%clk 0:01:19.5]} 23...
bxa5 {[%clk 0:02:25.8]} 24. Qxa5 {[%clk 0:01:13.2]} 24... Ra8 {[%clk 0:02:24.8]}
0-1

[Event "*** Titled Tuesday Blitz"]
[Site "Chess.com"]
[Date "2021.02.09"]
[Round "5"]
[White "MF1966Idrisov"]
[Black "googlegoom"]
[Result "1-0"]
[WhiteElo "2402"]
[BlackElo "2529"]
[TimeControl "180+1"]
[EndTime "10:53:38 PST"]
[Termination "MF1966Idrisov won by resignation"]

1. Nf3 {[%clk 0:03:00.9]} 1... d5 {[%clk 0:02:59.1]} 2. b3 {[%clk 0:03:00.6]}
2... Nf6 {[%clk 0:02:59]} 3. Bb2 {[%clk 0:03:01]} 3... e6 {[%clk 0:02:59.5]} 4.
e3 {[%clk 0:03:00.8]} 4... b6 {[%clk 0:02:59.5]} 5. d4 {[%clk 0:03:01.4]} 5...
Bb7 {[%clk 0:02:59.9]} 6. Bd3 {[%clk 0:03:02.1]} 6... Nbd7 {[%clk 0:03:00.4]} 7.
O-O {[%clk 0:03:01.9]} 7... Be7 {[%clk 0:03:00.4]} 8. Nbd2 {[%clk 0:03:01.9]}
8... c5 {[%clk 0:02:59.9]} 9. Ne5 {[%clk 0:03:02.1]} 9... Rc8 {[%clk 0:02:58.9]}
10. f4 {[%clk 0:03:00.8]} 10... O-O {[%clk 0:02:58.9]} 11. Qf3 {[%clk
0:03:00.2]} 11... a6 {[%clk 0:02:54.1]} 12. Rad1 {[%clk 0:02:50]} 12... b5
{[%clk 0:02:53.8]} 13. Nxd7 {[%clk 0:02:48.7]} 13... Qxd7 {[%clk 0:02:52.7]} 14.
dxc5 {[%clk 0:02:48.9]} 14... Rxc5 {[%clk 0:02:50.7]} 15. Qh3 {[%clk 0:02:44]}
15... g6 {[%clk 0:02:48.6]} 16. Qh6 {[%clk 0:02:42.5]} 16... Rfc8 {[%clk
0:02:39.4]} 17. Nf3 {[%clk 0:02:38.5]} 17... Bf8 {[%clk 0:02:37.8]} 18. Qh4
{[%clk 0:02:38.3]} 18... Ne8 {[%clk 0:02:26]} 19. Ba3 {[%clk 0:02:25.4]} 19...
Nd6 {[%clk 0:01:26]} 20. Bxc5 {[%clk 0:02:17.6]} 20... Rxc5 {[%clk 0:01:26.9]}
21. Ne5 {[%clk 0:02:15.4]} 21... Qc7 {[%clk 0:01:25.5]} 22. Ng4 {[%clk
0:02:14.9]} 22... Ne4 {[%clk 0:01:22.4]} 23. Bxe4 {[%clk 0:02:10.4]} 23... dxe4
{[%clk 0:01:23.3]} 24. Nf6+ {[%clk 0:02:10.3]} 1-0

[Event "*** Titled Tuesday Blitz"]
[Site "Chess.com"]
[Date "2021.02.09"]
[Round "5"]
[White "jamalm2"]
[Black "LenkaPtacnikova"]
[Result "1-0"]
[WhiteElo "1940"]
[BlackElo "2144"]
[TimeControl "180+1"]
[EndTime "10:53:41 PST"]
[Termination "jamalm2 won by resignation"]

1. e4 {[%clk 0:03:00.9]} 1... c5 {[%clk 0:02:58.5]} 2. Nf3 {[%clk 0:02:59.2]}
2... e6 {[%clk 0:02:58.8]} 3. d4 {[%clk 0:02:57.6]} 3... cxd4 {[%clk 0:02:58.7]}
4. Nxd4 {[%clk 0:02:57.4]} 4... Nf6 {[%clk 0:02:59.2]} 5. Nc3 {[%clk 0:02:55.8]}
5... Nc6 {[%clk 0:02:59.7]} 6. Ndb5 {[%clk 0:02:45.2]} 6... Bb4 {[%clk
0:02:59.2]} 7. Nd6+ {[%clk 0:02:39.1]} 7... Ke7 {[%clk 0:02:57.7]} 8. Nxc8+
{[%clk 0:02:32.4]} 8... Rxc8 {[%clk 0:02:55.8]} 9. Bd3 {[%clk 0:02:31.9]} 9...
d5 {[%clk 0:02:48.3]} 10. exd5 {[%clk 0:02:16.2]} 10... Nxd5 {[%clk 0:02:47.3]}
11. Bd2 {[%clk 0:02:15.1]} 11... Nxc3 {[%clk 0:02:44.1]} 12. bxc3 {[%clk
0:02:14]} 12... Ba5 {[%clk 0:02:34]} 13. O-O {[%clk 0:02:12.9]} 13... Qd5 {[%clk
0:02:28.1]} 14. c4 {[%clk 0:02:09]} 14... Qc5 {[%clk 0:02:24.8]} 15. Be3 {[%clk
0:02:05.4]} 15... Qe5 {[%clk 0:02:16.6]} 16. Qf3 {[%clk 0:02:01.5]} 16... h6
{[%clk 0:01:57.4]} 17. Rab1 {[%clk 0:01:59.4]} 17... Rc7 {[%clk 0:01:46.2]} 18.
Bf4 {[%clk 0:01:58.1]} 18... Qc3 {[%clk 0:01:24.7]} 19. Bxc7 {[%clk 0:01:56.2]}
19... Bxc7 {[%clk 0:01:21.9]} 20. Rxb7 {[%clk 0:01:55.9]} 1-0

[Event "*** Titled Tuesday Blitz"]
[Site "Chess.com"]
[Date "2021.02.09"]
[Round "5"]
[White "j2806"]
[Black "CalinGheorghiu"]
[Result "0-1"]
[WhiteElo "2093"]
[BlackElo "2297"]
[TimeControl "180+1"]
[EndTime "10:53:48 PST"]
[Termination "CalinGheorghiu won by resignation"]

1. e4 {[%clk 0:02:57.2]} 1... c5 {[%clk 0:02:38.9]} 2. Nf3 {[%clk 0:02:55.3]}
2... d6 {[%clk 0:02:39.2]} 3. d4 {[%clk 0:02:55.8]} 3... cxd4 {[%clk 0:02:40.1]}
4. Nxd4 {[%clk 0:02:56.4]} 4... Nf6 {[%clk 0:02:40.7]} 5. Nc3 {[%clk 0:02:57]}
5... a6 {[%clk 0:02:41.3]} 6. Be3 {[%clk 0:02:57.5]} 6... e5 {[%clk 0:02:41.3]}
7. Nb3 {[%clk 0:02:56.4]} 7... Be6 {[%clk 0:02:41.3]} 8. f3 {[%clk 0:02:56]}
8... Be7 {[%clk 0:02:41.4]} 9. Qd2 {[%clk 0:02:56.5]} 9... O-O {[%clk
0:02:41.5]} 10. O-O-O {[%clk 0:02:57]} 10... a5 {[%clk 0:02:42]} 11. Kb1 {[%clk
0:02:54]} 11... a4 {[%clk 0:02:42.1]} 12. Nc1 {[%clk 0:02:53.6]} 12... a3 {[%clk
0:02:42.9]} 13. b3 {[%clk 0:02:52.4]} 13... Ra5 {[%clk 0:02:43.5]} 14. g4 {[%clk
0:02:52.3]} 14... d5 {[%clk 0:02:43.4]} 15. exd5 {[%clk 0:02:50.3]} 15... Nxd5
{[%clk 0:02:40.5]} 16. Nxd5 {[%clk 0:02:33.5]} 16... Rxd5 {[%clk 0:02:39.9]} 17.
Bd3 {[%clk 0:02:33.7]} 17... Nc6 {[%clk 0:02:38.5]} 18. h4 {[%clk 0:02:29.7]}
18... Bb4 {[%clk 0:02:22.1]} 19. Qe2 {[%clk 0:02:27.5]} 19... Nd4 {[%clk
0:02:06.9]} 20. Qf2 {[%clk 0:02:19.1]} 20... Qc7 {[%clk 0:01:49.9]} 21. Bc4
{[%clk 0:02:13.8]} 21... Rd7 {[%clk 0:01:45.2]} 22. Bxe6 {[%clk 0:02:10.2]}
22... fxe6 {[%clk 0:01:45.2]} 23. Bxd4 {[%clk 0:02:08.4]} 23... exd4 {[%clk
0:01:44.4]} 24. Rxd4 {[%clk 0:02:08.9]} 24... Qc3 {[%clk 0:01:37.2]} 25. Nd3
{[%clk 0:01:57.2]} 25... Rxd4 {[%clk 0:01:36.3]} 26. Re1 {[%clk 0:01:54.4]}
26... Rxd3 {[%clk 0:01:35.3]} 0-1

[Event "*** Titled Tuesday Blitz"]
[Site "Chess.com"]
[Date "2021.02.09"]
[Round "5"]
[White "misterlamine"]
[Black "Kislov_Oleg"]
[Result "0-1"]
[WhiteElo "2282"]
[BlackElo "2482"]
[TimeControl "180+1"]
[EndTime "10:54:07 PST"]
[Termination "Kislov_Oleg won on time"]

1. d4 {[%clk 0:02:45.1]} 1... Nf6 {[%clk 0:02:58.1]} 2. c4 {[%clk 0:02:12]} 2...
e6 {[%clk 0:02:57.8]} 3. Nf3 {[%clk 0:01:54.5]} 3... d5 {[%clk 0:02:57.8]} 4.
Nc3 {[%clk 0:01:49.3]} 4... Bb4 {[%clk 0:02:57.6]} 5. Bg5 {[%clk 0:01:44.7]}
5... h6 {[%clk 0:02:57.3]} 6. Bxf6 {[%clk 0:01:43.2]} 6... Qxf6 {[%clk
0:02:57.2]} 7. e3 {[%clk 0:01:34.1]} 7... O-O {[%clk 0:02:56.4]} 8. Qb3 {[%clk
0:01:07]} 8... Nc6 {[%clk 0:02:51.2]} 9. cxd5 {[%clk 0:00:50.8]} 9... exd5
{[%clk 0:02:50.6]} 10. Be2 {[%clk 0:00:46.2]} 10... Qd6 {[%clk 0:02:34.1]} 11.
O-O {[%clk 0:00:36.1]} 11... Bxc3 {[%clk 0:02:34]} 0-1

[Event "*** Titled Tuesday Blitz"]
[Site "Chess.com"]
[Date "2021.02.09"]
[Round "5"]
[White "stasiek18"]
[Black "Kale36"]
[Result "1-0"]
[WhiteElo "2385"]
[BlackElo "2244"]
[TimeControl "180+1"]
[EndTime "10:54:22 PST"]
[Termination "stasiek18 won by resignation"]

1. e4 {[%clk 0:03:00.9]} 1... Nc6 {[%clk 0:02:59.1]} 2. a3 {[%clk 0:02:58.5]}
2... e5 {[%clk 0:02:58.6]} 3. Nc3 {[%clk 0:02:56.3]} 3... Bc5 {[%clk 0:02:58.4]}
4. Bc4 {[%clk 0:02:55.6]} 4... Nf6 {[%clk 0:02:55.3]} 5. d3 {[%clk 0:02:55.5]}
5... h6 {[%clk 0:02:54.7]} 6. Nf3 {[%clk 0:02:31.2]} 6... d6 {[%clk 0:02:51.6]}
7. Na4 {[%clk 0:02:30.9]} 7... Bg4 {[%clk 0:02:47.5]} 8. c3 {[%clk 0:02:22.2]}
8... a6 {[%clk 0:02:44.8]} 9. Nxc5 {[%clk 0:02:21.8]} 9... dxc5 {[%clk
0:02:44.7]} 10. h3 {[%clk 0:02:17.9]} 10... Bh5 {[%clk 0:02:42.8]} 11. g4 {[%clk
0:02:14.3]} 11... Bg6 {[%clk 0:02:42.8]} 12. Nh4 {[%clk 0:02:14]} 12... b5
{[%clk 0:02:36.1]} 13. Ba2 {[%clk 0:02:04.3]} 13... c4 {[%clk 0:02:35.4]} 14.
Nxg6 {[%clk 0:01:49.7]} 14... fxg6 {[%clk 0:02:36.3]} 15. dxc4 {[%clk
0:01:44.8]} 15... Qxd1+ {[%clk 0:02:35.5]} 16. Kxd1 {[%clk 0:01:45.7]} 16...
Nxe4 {[%clk 0:02:35.8]} 17. Ke2 {[%clk 0:01:46.1]} 17... O-O {[%clk 0:02:32.7]}
18. Be3 {[%clk 0:01:45.6]} 18... Kh7 {[%clk 0:02:13.6]} 19. cxb5 {[%clk
0:01:44.3]} 19... axb5 {[%clk 0:02:14.5]} 20. Bd5 {[%clk 0:01:44.4]} 20... Nxc3+
{[%clk 0:01:35.1]} 21. bxc3 {[%clk 0:01:43.1]} 21... Ra6 {[%clk 0:01:36]} 22.
Be4 {[%clk 0:01:37.4]} 22... Na5 {[%clk 0:01:31.6]} 23. h4 {[%clk 0:01:34.9]}
23... Nc4 {[%clk 0:01:31.4]} 24. h5 {[%clk 0:01:34.7]} 24... Nxe3 {[%clk
0:01:22]} 25. fxe3 {[%clk 0:01:32.5]} 1-0

[Event "*** Titled Tuesday Blitz"]
[Site "Chess.com"]
[Date "2021.02.09"]
[Round "5"]
[White "KyronGriffith"]
[Black "EugeneRougon"]
[Result "0-1"]
[WhiteElo "2506"]
[BlackElo "2709"]
[TimeControl "180+1"]
[EndTime "10:54:26 PST"]
[Termination "EugeneRougon won by resignation"]

1. e4 {[%clk 0:03:00.9]} 1... e6 {[%clk 0:02:50.3]} 2. d4 {[%clk 0:02:59.5]}
2... d5 {[%clk 0:02:49.5]} 3. Nd2 {[%clk 0:03:00.1]} 3... c5 {[%clk 0:02:49.2]}
4. Ngf3 {[%clk 0:02:59]} 4... cxd4 {[%clk 0:02:48.1]} 5. exd5 {[%clk 0:02:58.6]}
5... Qxd5 {[%clk 0:02:49]} 6. Bc4 {[%clk 0:02:58.8]} 6... Qd6 {[%clk 0:02:49.7]}
7. O-O {[%clk 0:02:59.5]} 7... Nf6 {[%clk 0:02:50.4]} 8. Re1 {[%clk 0:02:59.8]}
8... Nc6 {[%clk 0:02:49.8]} 9. Ne4 {[%clk 0:03:00.2]} 9... Nxe4 {[%clk
0:02:47.1]} 10. Rxe4 {[%clk 0:03:01.1]} 10... Be7 {[%clk 0:02:41.9]} 11. Bf4
{[%clk 0:03:01.2]} 11... Qc5 {[%clk 0:02:37.7]} 12. Bd3 {[%clk 0:03:00.7]} 12...
Bf6 {[%clk 0:02:30.5]} 13. a3 {[%clk 0:03:00.7]} 13... a5 {[%clk 0:02:27.6]} 14.
Qe2 {[%clk 0:03:01.1]} 14... O-O {[%clk 0:02:26]} 15. Ne5 {[%clk 0:02:59.6]}
15... Nxe5 {[%clk 0:02:20.3]} 16. Bxe5 {[%clk 0:03:00.5]} 16... Bxe5 {[%clk
0:02:20.8]} 17. Rxe5 {[%clk 0:03:01.4]} 17... Qb6 {[%clk 0:02:21.4]} 18. Rb5
{[%clk 0:02:51.5]} 18... Qd6 {[%clk 0:02:21]} 19. Rd1 {[%clk 0:02:44.1]} 19...
Bd7 {[%clk 0:02:12.2]} 20. Rxb7 {[%clk 0:02:29]} 20... Bc6 {[%clk 0:02:11.2]}
21. Rb6 {[%clk 0:02:21.3]} 21... Qc5 {[%clk 0:02:08.5]} 22. Rxc6 {[%clk
0:02:19.3]} 22... Qxc6 {[%clk 0:02:09.4]} 23. Be4 {[%clk 0:02:19.5]} 23... Qc5
{[%clk 0:02:08.3]} 24. Bxa8 {[%clk 0:02:20]} 24... Rxa8 {[%clk 0:02:09.1]} 25.
Qd3 {[%clk 0:02:09.1]} 25... e5 {[%clk 0:01:57.8]} 26. Qe4 {[%clk 0:02:03.4]}
26... Rb8 {[%clk 0:01:53.8]} 27. b3 {[%clk 0:02:01]} 27... f6 {[%clk 0:01:46.6]}
28. a4 {[%clk 0:01:59.4]} 28... Rc8 {[%clk 0:01:45.8]} 29. Rd2 {[%clk
0:01:57.3]} 29... Qc3 {[%clk 0:01:44.3]} 30. Qe2 {[%clk 0:01:40.6]} 30... e4
{[%clk 0:01:21.8]} 31. Qxe4 {[%clk 0:01:40.1]} 31... Qa1+ {[%clk 0:01:19.8]} 0-1

[Event "*** Titled Tuesday Blitz"]
[Site "Chess.com"]
[Date "2021.02.09"]
[Round "5"]
[White "AsaHoffmann"]
[Black "paulrusan"]
[Result "0-1"]
[WhiteElo "2377"]
[BlackElo "2243"]
[TimeControl "180+1"]
[EndTime "10:54:27 PST"]
[Termination "paulrusan won by checkmate"]

1. d4 {[%clk 0:02:59]} 1... Nf6 {[%clk 0:02:59.4]} 2. Bg5 {[%clk 0:02:55.6]}
2... Ne4 {[%clk 0:02:58]} 3. Bf4 {[%clk 0:02:54.9]} 3... c5 {[%clk 0:02:58.1]}
4. f3 {[%clk 0:02:54.6]} 4... Qa5+ {[%clk 0:02:57.7]} 5. c3 {[%clk 0:02:53.9]}
5... Nf6 {[%clk 0:02:57.4]} 6. d5 {[%clk 0:02:53.7]} 6... e6 {[%clk 0:02:56.7]}
7. e4 {[%clk 0:02:53.1]} 7... exd5 {[%clk 0:02:56]} 8. exd5 {[%clk 0:02:52.9]}
8... Qb6 {[%clk 0:02:56.1]} 9. Qe2+ {[%clk 0:02:26.8]} 9... Kd8 {[%clk
0:02:55.1]} 10. c4 {[%clk 0:02:20.8]} 10... Bd6 {[%clk 0:02:51.3]} 11. Bxd6
{[%clk 0:02:13.8]} 11... Qxd6 {[%clk 0:02:49.1]} 12. Kf2 {[%clk 0:02:09.2]}
12... Re8 {[%clk 0:02:47.7]} 13. Qd2 {[%clk 0:02:06.5]} 13... Qe5 {[%clk
0:02:43.3]} 14. Nc3 {[%clk 0:01:59.2]} 14... d6 {[%clk 0:02:43.5]} 15. Bd3
{[%clk 0:01:57.3]} 15... Bf5 {[%clk 0:02:41.4]} 16. Nge2 {[%clk 0:01:52.5]}
16... Nbd7 {[%clk 0:02:31.8]} 17. Rae1 {[%clk 0:01:51.5]} 17... Bxd3 {[%clk
0:02:26.1]} 18. Qxd3 {[%clk 0:01:50.6]} 18... Qg5 {[%clk 0:02:26.3]} 19. h4
{[%clk 0:01:42.2]} 19... Ne5 {[%clk 0:02:22.1]} 20. Qc2 {[%clk 0:01:28.1]} 20...
Neg4+ {[%clk 0:02:14.5]} 21. Kg3 {[%clk 0:01:05.9]} 21... Qe5+ {[%clk 0:02:09]}
22. Nf4 {[%clk 0:00:59.1]} 22... Nh5+ {[%clk 0:01:57.6]} 23. Kxg4 {[%clk
0:00:58.4]} 23... Qxf4+ {[%clk 0:01:57.3]} 24. Kxh5 {[%clk 0:00:49.9]} 24... g6+
{[%clk 0:01:54.8]} 25. Qxg6 {[%clk 0:00:46.8]} 25... hxg6# {[%clk 0:01:54.1]}
0-1

[Event "*** Titled Tuesday Blitz"]
[Site "Chess.com"]
[Date "2021.02.09"]
[Round "5"]
[White "LubovMarkelova"]
[Black "djano"]
[Result "0-1"]
[WhiteElo "2251"]
[BlackElo "2477"]
[TimeControl "180+1"]
[EndTime "10:54:29 PST"]
[Termination "djano won by resignation"]

1. d4 {[%clk 0:02:29.6]} 1... Nf6 {[%clk 0:02:58.3]} 2. Nf3 {[%clk 0:02:29.9]}
2... g6 {[%clk 0:02:55.4]} 3. c4 {[%clk 0:02:29.6]} 3... Bg7 {[%clk 0:02:53.5]}
4. Nc3 {[%clk 0:02:29.8]} 4... O-O {[%clk 0:02:50.6]} 5. e4 {[%clk 0:02:29.7]}
5... d6 {[%clk 0:02:51.1]} 6. Be2 {[%clk 0:02:29.4]} 6... c5 {[%clk 0:02:51.6]}
7. d5 {[%clk 0:02:25.5]} 7... e6 {[%clk 0:02:50.7]} 8. h3 {[%clk 0:02:21.6]}
8... exd5 {[%clk 0:02:46.8]} 9. cxd5 {[%clk 0:02:21.3]} 9... Re8 {[%clk
0:02:41.4]} 10. Bg5 {[%clk 0:02:18.6]} 10... Qb6 {[%clk 0:02:35.3]} 11. Qc2
{[%clk 0:01:44.6]} 11... Na6 {[%clk 0:02:05.5]} 12. a3 {[%clk 0:01:42.2]} 12...
c4 {[%clk 0:02:05]} 13. Bxf6 {[%clk 0:01:33.5]} 13... Bxf6 {[%clk 0:02:04.5]}
14. Nd2 {[%clk 0:01:33.9]} 14... Nc5 {[%clk 0:01:53.1]} 15. Nxc4 {[%clk
0:01:31.3]} 15... Qc7 {[%clk 0:01:50.2]} 16. O-O-O {[%clk 0:01:19.9]} 16... Bxc3
{[%clk 0:01:29]} 17. Qxc3 {[%clk 0:01:16.3]} 17... Nxe4 {[%clk 0:01:28]} 18. Qc2
{[%clk 0:01:16.4]} 18... Nxf2 {[%clk 0:01:26.3]} 0-1

[Event "*** Titled Tuesday Blitz"]
[Site "Chess.com"]
[Date "2021.02.09"]
[Round "5"]
[White "Sokoloco"]
[Black "miredenizdogan"]
[Result "1-0"]
[WhiteElo "2477"]
[BlackElo "2249"]
[TimeControl "180+1"]
[EndTime "10:54:41 PST"]
[Termination "Sokoloco won by resignation"]

1. b3 {[%clk 0:03:00.9]} 1... c5 {[%clk 0:02:59.9]} 2. Bb2 {[%clk 0:03:00.9]}
2... d5 {[%clk 0:03:00]} 3. e3 {[%clk 0:03:01.3]} 3... Nc6 {[%clk 0:03:00.3]} 4.
Bb5 {[%clk 0:03:01.2]} 4... Qb6 {[%clk 0:02:59.6]} 5. Bxc6+ {[%clk 0:02:56.9]}
5... Qxc6 {[%clk 0:03:00.5]} 6. f4 {[%clk 0:02:57]} 6... Nf6 {[%clk 0:02:56.4]}
7. Nf3 {[%clk 0:02:57.4]} 7... Bg4 {[%clk 0:02:56.3]} 8. O-O {[%clk 0:02:56.8]}
8... e6 {[%clk 0:02:56]} 9. d3 {[%clk 0:02:57]} 9... Be7 {[%clk 0:02:53.5]} 10.
Nbd2 {[%clk 0:02:57.6]} 10... h5 {[%clk 0:02:51.8]} 11. h3 {[%clk 0:02:56.8]}
11... Bf5 {[%clk 0:02:49]} 12. Ne5 {[%clk 0:02:55.5]} 12... Qc7 {[%clk
0:02:42.4]} 13. g4 {[%clk 0:02:34.6]} 13... hxg4 {[%clk 0:02:33.3]} 14. hxg4
{[%clk 0:02:35.5]} 14... Bh7 {[%clk 0:02:29.7]} 15. g5 {[%clk 0:02:35]} 15...
Nd7 {[%clk 0:02:29.7]} 16. Ndf3 {[%clk 0:02:06.2]} 16... f6 {[%clk 0:02:27.8]}
17. Nxd7 {[%clk 0:01:59]} 17... Kxd7 {[%clk 0:02:27.1]} 18. c4 {[%clk
0:01:51.1]} 18... fxg5 {[%clk 0:02:23.8]} 19. Ne5+ {[%clk 0:01:46.3]} 19... Kc8
{[%clk 0:02:19.6]} 20. cxd5 {[%clk 0:01:42.6]} 20... exd5 {[%clk 0:02:18.8]} 21.
Qg4+ {[%clk 0:01:35.5]} 21... Kb8 {[%clk 0:02:12.9]} 22. Nd7+ {[%clk 0:01:35.5]}
22... Kc8 {[%clk 0:02:12.6]} 23. Nxc5+ {[%clk 0:01:12.6]} 23... Kb8 {[%clk
0:02:12.5]} 24. Be5 {[%clk 0:00:34.6]} 24... Bd6 {[%clk 0:02:10.4]} 25. Nd7+
{[%clk 0:00:35.1]} 25... Kc8 {[%clk 0:02:08.5]} 26. Rac1 {[%clk 0:00:31.5]}
26... Bxe5 {[%clk 0:02:06.4]} 27. Nxe5+ {[%clk 0:00:31.1]} 1-0